fUST/lending_fUST_20240721
["ID","MTS","AMOUNT","RATE_DAILY","PERIOD"]
[332787827,1721523039475,-500.0,0.00013698,2]
[332787828,1721523039485,-500.0,0.00013698,2]
[332787829,1721523039495,-500.0,0.00013698,2]
[332787830,1721523039505,-500.0,0.00013698,2]
[332787832,1721523039515,-500.0,0.00013698,2]
[332787834,1721523039524,-500.0,0.00013698,2]
[332787835,1721523039535,-500.0,0.00013698,2]
[332787836,1721523039544,-500.0,0.00013698,2]
[332787837,1721523039554,-500.0,0.00013698,2]
[332787838,1721523039564,-500.0,0.00013698,2]
[332787840,1721523039574,-500.0,0.00013698,2]
[332787842,1721523039584,-500.0,0.00013698,2]
[332787844,1721523039594,-500.0,0.00013698,2]
[332787845,1721523039607,-500.0,0.00013698,2]
[332787846,1721523039618,-503.39002085,0.00013698,2]
[332787847,1721523039627,-500.0,0.00013698,2]
[332787848,1721523039638,-500.0,0.00013698,2]
[332787849,1721523039648,-975.83,0.00013698,2]
[332787850,1721523039657,-514.26,0.00013698,2]
[332787851,1721523039668,-822.95,0.00013698,2]
[332787852,1721523039678,-500.0,0.00013698,2]
[332787853,1721523039688,-2000.0,0.00013698,2]
[332787854,1721523039698,-500.0,0.00013698,2]
[332787855,1721523039708,-500.0,0.00013698,2]
[332787857,1721523039717,-500.0,0.00013698,2]
[332787859,1721523039728,-581.98,0.00013698,2]
[332787861,1721523039738,-508.26067734,0.00013698,2]
[332787863,1721523039748,-500.0,0.00013698,2]
[332787864,1721523039758,-500.0,0.00013698,2]
[332787866,1721523039768,-500.0,0.00013698,2]
[332787867,1721523039778,-505.51177365,0.00013698,2]
[332787868,1721523039787,-500.0,0.00013698,2]
[332787869,1721523039797,-500.0,0.00013698,2]
[332787870,1721523039806,-503.48851002,0.00013698,2]
[332787871,1721523039816,-500.0,0.00013698,2]
[332787872,1721523039826,-500.0,0.00013698,2]
[332787873,1721523039837,-500.0,0.00013698,2]
[332787874,1721523039847,-500.0,0.00013698,2]
[332787875,1721523039859,-500.0,0.00013698,2]
[332787876,1721523039869,-500.0,0.00013698,2]
[332787877,1721523039878,-500.0,0.00013698,2]
[332787878,1721523039888,-500.0,0.00013698,2]
[332787879,1721523039898,-500.0,0.00013698,2]
[332787880,1721523039908,-601.45111712,0.00013698,2]
[332787881,1721523039918,-477.10124464,0.00013698,2]
[332787882,1721523039927,-500.0,0.00013698,2]
[332787883,1721523039937,-500.0,0.00013698,2]
[332787884,1721523039947,-500.0,0.00013698,2]
[332787885,1721523039957,-532.15,0.00013698,2]
[332787886,1721523039967,-785.31,0.00013698,2]
[332787887,1721523039976,-500.0,0.00013698,2]
[332787888,1721523039986,-870.08,0.00013698,2]
[332787889,1721523039996,-500.0,0.00013698,2]
[332787890,1721523040008,-986.43,0.00013698,2]
[332787891,1721523040019,-500.0,0.00013698,2]
[332787892,1721523040028,-500.0,0.00013698,2]
[332787893,1721523040038,-500.0,0.00013698,2]
[332787894,1721523040047,-500.0,0.00013698,2]
[332787895,1721523040057,-502.71055859,0.00013698,2]
[332787896,1721523040066,-2497.34,0.00013698,2]
[332787897,1721523040075,-184.7031653,0.00013698,2]
[332787898,1721523040088,-500.0,0.00013698,2]
[332787899,1721523040098,-500.0,0.00013698,2]
[332787900,1721523040107,-500.0,0.00013698,2]
[332787901,1721523040116,-512.82149887,0.00013698,2]
[332787902,1721523040126,-500.0,0.00013698,2]
[332787903,1721523040135,-500.0,0.00013698,2]
[332787904,1721523040144,-500.0,0.00013698,2]
[332787905,1721523040153,-500.0,0.00013698,2]
[332787906,1721523040166,-500.0,0.00013698,2]
[332787907,1721523040176,-500.0,0.00013698,2]
[332787908,1721523040185,-801.48,0.00013698,2]
[332787909,1721523040196,-500.0,0.00013698,2]
[332787910,1721523040205,-500.0,0.00013698,2]
[332787911,1721523040214,-500.0,0.00013698,2]
[332787912,1721523040224,-500.0,0.00013698,2]
[332787913,1721523040233,-500.0,0.00013698,2]
[332787914,1721523040243,-500.0,0.00013698,2]
[332787915,1721523040252,-500.0,0.00013698,2]
[332787916,1721523040262,-500.0,0.00013698,2]
[332787917,1721523040272,-500.0,0.00013698,2]
[332787918,1721523040282,-500.0,0.00013698,2]
[332787919,1721523040292,-500.0,0.00013698,2]
[332787920,1721523040303,-500.0,0.00013698,2]
[332787921,1721523040314,-500.0,0.00013698,2]
[332787922,1721523040324,-500.0,0.00013698,2]
[332787923,1721523040337,-500.0,0.00013698,2]
[332787924,1721523040347,-500.0,0.00013698,2]
[332787925,1721523040358,-245.72312322,0.00013698,2]
[332787926,1721523040370,-500.0,0.00013698,2]
[332787927,1721523040379,-500.0,0.00013698,2]
[332787928,1721523040389,-501.47697445,0.00013698,2]
[332787929,1721523040399,-500.0,0.00013698,2]
[332787930,1721523040409,-500.0,0.00013698,2]
[332787931,1721523040418,-500.0,0.00013698,2]
[332787932,1721523040428,-500.0,0.00013698,2]
[332787933,1721523040437,-500.0,0.00013698,2]
[332787934,1721523040447,-500.0,0.00013698,2]
[332787935,1721523040458,-500.0,0.00013698,2]
[332787936,1721523040469,-500.0,0.00013698,2]
[332787937,1721523040479,-500.0,0.00013698,2]
[332787938,1721523040490,-500.0,0.00013698,2]
[332787939,1721523040499,-500.0,0.00013698,2]
[332787940,1721523040509,-500.0,0.00013698,2]
[332787941,1721523040518,-500.0,0.00013698,2]
[332787942,1721523040528,-500.0,0.00013698,2]
[332787943,1721523040538,-500.0,0.00013698,2]
[332787944,1721523040548,-500.0,0.00013698,2]
[332787945,1721523040559,-500.0,0.00013698,2]
[332787946,1721523040571,-331.2748699,0.00013698,2]
[332787947,1721523040580,-500.0,0.00013698,2]
[332787948,1721523040591,-500.0,0.00013698,2]
[332787949,1721523040603,-500.0,0.00013698,2]
[332787950,1721523040613,-500.0,0.00013698,2]
[332787951,1721523040625,-513.30695711,0.00013698,2]
[332787952,1721523040635,-500.0,0.00013698,2]
[332787953,1721523040645,-500.0,0.00013698,2]
[332787954,1721523040655,-500.4941119,0.00013698,2]
[332787955,1721523040666,-500.0,0.00013698,2]
[332787956,1721523040678,-500.0,0.00013698,2]
[332787957,1721523040687,-500.0,0.00013698,2]
[332787958,1721523040697,-500.0,0.00013698,2]
[332787959,1721523040707,-500.0,0.00013698,2]
[332787960,1721523040716,-500.0,0.00013698,2]
[332787961,1721523040726,-1385.07,0.00013698,2]
[332787962,1721523040736,-500.0,0.00013698,2]
[332787963,1721523040745,-500.0,0.00013698,2]
[332787964,1721523040754,-704.38,0.00013698,2]
[332787965,1721523040765,-500.0,0.00013698,2]
[332787966,1721523040775,-500.0,0.00013698,2]
[332787967,1721523040785,-500.0,0.00013698,2]
[332787968,1721523040794,-195.45701059,0.00013698,2]
[332787969,1721523040804,-500.0,0.00013698,2]
[332787970,1721523040813,-500.0,0.00013698,2]
[332787971,1721523040823,-500.0,0.00013698,2]
[332787972,1721523040833,-500.0,0.00013698,2]
[332787973,1721523040843,-554.95,0.00013698,2]
[332787974,1721523040855,-2538.04,0.00013698,2]
[332787975,1721523040864,-510.80465162,0.00013698,2]
[332787976,1721523040874,-500.0,0.00013698,2]
[332787977,1721523040885,-504.23049951,0.00013698,2]
[332787978,1721523040894,-503.14598103,0.00013698,2]
[332787979,1721523040904,-500.0,0.00013698,2]
[332787980,1721523040914,-500.0,0.00013698,2]
[332787981,1721523040924,-500.0,0.00013698,2]
[332787982,1721523040933,-500.0,0.00013698,2]
[332787983,1721523040943,-500.0,0.00013698,2]
[332787984,1721523040952,-500.0,0.00013698,2]
[332787985,1721523040962,-2577.55,0.00013698,2]
[332787986,1721523040972,-500.0,0.00013698,2]
[332787987,1721523040982,-500.0,0.00013698,2]
[332787988,1721523040991,-500.0,0.00013698,2]
[332787989,1721523041002,-1042.06,0.00013698,2]
[332787990,1721523041011,-581.99,0.00013698,2]
[332787991,1721523041021,-2237.74,0.00013698,2]
[332787992,1721523041031,-500.0,0.00013698,2]
[332787993,1721523041040,-569.4009346,0.00013698,2]
[332787994,1721523041052,-732.55,0.00013698,2]
[332787995,1721523041063,-500.0,0.00013698,2]
[332787996,1721523041074,-500.0,0.00013698,2]
[332787997,1721523041085,-667.62,0.00013698,2]
[332787998,1721523041095,-743.71,0.00013698,2]
[332787999,1721523041107,-832.29,0.00013698,2]
[332788000,1721523041119,-500.0,0.00013698,2]
[332788001,1721523041131,-500.0,0.00013698,2]
[332788002,1721523041142,-500.0,0.00013698,2]
[332788003,1721523041153,-500.0,0.00013698,2]
[332788004,1721523041164,-500.0,0.00013698,2]
[332788005,1721523041175,-500.0,0.00013698,2]
[332788006,1721523041184,-500.0,0.00013698,2]
[332788007,1721523041193,-500.0,0.00013698,2]
[332788008,1721523041203,-500.0,0.00013698,2]
[332788009,1721523041213,-500.0,0.00013698,2]
[332788010,1721523041223,-500.0,0.00013698,2]
[332788011,1721523041232,-500.0,0.00013698,2]
[332788012,1721523041242,-500.0,0.00013698,2]
[332788013,1721523041252,-503.70346198,0.00013698,2]
[332788014,1721523041261,-824.29,0.00013698,2]
[332788015,1721523041271,-500.0,0.00013698,2]
[332788016,1721523041281,-500.0,0.00013698,2]
[332788017,1721523041291,-592.91,0.00013698,2]
[332788018,1721523041301,-500.0,0.00013698,2]
[332788019,1721523041311,-500.0,0.00013698,2]
[332788020,1721523041320,-500.0,0.00013698,2]
[332788021,1721523041330,-398.38256931,0.00013698,2]
[332788022,1721523041342,-500.0,0.00013698,2]
[332788023,1721523041352,-500.0,0.00013698,2]
[332788024,1721523041362,-505.19,0.00013698,2]
[332788025,1721523041372,-500.0,0.00013698,2]
[332788026,1721523041381,-500.0,0.00013698,2]
[332788027,1721523041391,-500.0,0.00013698,2]
[332788028,1721523041402,-500.0,0.00013698,2]
[332788029,1721523041413,-500.0,0.00013698,2]
[332788030,1721523041422,-500.0,0.00013698,2]
[332788031,1721523041431,-1009.88,0.00013698,2]
[332788032,1721523041441,-561.15,0.00013698,2]
[332788033,1721523041451,-775.21,0.00013698,2]
[332788034,1721523041460,-500.0,0.00013698,2]
[332788035,1721523041469,-500.0,0.00013698,2]
[332788036,1721523041479,-501.22838301,0.00013698,2]
[332788037,1721523041489,-500.0,0.00013698,2]
[332788038,1721523041500,-500.0,0.00013698,2]
[332788039,1721523041509,-500.0,0.00013698,2]
[332788040,1721523041519,-500.0,0.00013698,2]
[332788041,1721523041528,-500.0,0.00013698,2]
[332788042,1721523041539,-500.0,0.00013698,2]
[332788043,1721523041550,-500.0,0.00013698,2]
[332788044,1721523041559,-500.0,0.00013698,2]
[332788045,1721523041570,-500.0,0.00013698,2]
[332788046,1721523041580,-501.25801672,0.00013698,2]
[332788047,1721523041591,-556.42,0.00013698,2]
[332788048,1721523041605,-500.0,0.00013698,2]
[332788049,1721523041615,-500.0,0.00013698,2]
[332788050,1721523041626,-3497.09,0.00013698,2]
[332788051,1721523041636,-500.0,0.00013698,2]
[332788052,1721523041648,-500.0,0.00013698,2]
[332788053,1721523041659,-500.0,0.00013698,2]
[332788054,1721523041669,-500.0,0.00013698,2]
[332788055,1721523041679,-513.19,0.00013698,2]
[332788056,1721523041688,-500.0,0.00013698,2]
[332788057,1721523041698,-500.0,0.00013698,2]
[332788058,1721523041708,-500.0,0.00013698,2]
[332788059,1721523041717,-1604.8,0.00013698,2]
[332788060,1721523041727,-1397.74,0.00013698,2]
[332788061,1721523041737,-1729.6,0.00013698,2]
[332788062,1721523041747,-511.47376649,0.00013698,2]
[332788063,1721523041756,-592.31,0.00013698,2]
[332788064,1721523041766,-603.13,0.00013698,2]
[332788065,1721523041775,-501.71905467,0.00013698,2]
[332788066,1721523041785,-500.0,0.00013698,2]
[332788067,1721523041794,-500.0,0.00013698,2]
[332788068,1721523041803,-500.0,0.00013698,2]
[332788069,1721523041813,-500.0,0.00013698,2]
[332788070,1721523041823,-522.39727874,0.00013698,2]
[332788071,1721523041834,-500.0,0.00013698,2]
[332788072,1721523041844,-1367.07,0.00013698,2]
[332788073,1721523041854,-500.0,0.00013698,2]
[332788074,1721523041864,-500.0,0.00013698,2]
[332788075,1721523041874,-1057.98,0.00013698,2]
[332788076,1721523041883,-500.0,0.00013698,2]
[332788077,1721523041893,-500.0,0.00013698,2]
[332788078,1721523041903,-758.56,0.00013698,2]
[332788079,1721523041914,-592.17800272,0.00013698,2]
[332788080,1721523041925,-581.14,0.00013698,2]
[332788081,1721523041936,-500.0,0.00013698,2]
[332788082,1721523041946,-596.87,0.00013698,2]
[332788083,1721523041956,-500.0,0.00013698,2]
[332788084,1721523041966,-500.0,0.00013698,2]
[332788085,1721523041977,-507.51827141,0.00013698,2]
[332788086,1721523041989,-500.0,0.00013698,2]
[332788087,1721523042000,-500.0,0.00013698,2]
[332788088,1721523042011,-500.0,0.00013698,2]
[332788089,1721523042020,-500.0,0.00013698,2]
[332788090,1721523042029,-500.0,0.00013698,2]
[332788091,1721523042039,-500.0,0.00013698,2]
[332788092,1721523042049,-500.0,0.00013698,2]
[332788093,1721523042058,-501.14776022,0.00013698,2]
[332788094,1721523042068,-500.0,0.00013698,2]
[332788095,1721523042078,-512.22231295,0.00013698,2]
[332788096,1721523042088,-502.3541028,0.00013698,2]
[332788097,1721523042098,-500.0,0.00013698,2]
[332788098,1721523042108,-500.0,0.00013698,2]
[332788099,1721523042120,-500.0,0.00013698,2]
[332788100,1721523042130,-500.0,0.00013698,2]
[332788101,1721523042141,-500.0,0.00013698,2]
[332788102,1721523042151,-500.0,0.00013698,2]
[332788103,1721523042160,-582.07,0.00013698,2]
[332788104,1721523042171,-669.72,0.00013698,2]
[332788105,1721523042181,-797.08,0.00013698,2]
[332788106,1721523042191,-500.0,0.00013698,2]
[332788107,1721523042202,-500.0,0.00013698,2]
[332788108,1721523042214,-823.45,0.00013698,2]
[332788109,1721523042225,-500.0,0.00013698,2]
[332788110,1721523042235,-500.0,0.00013698,2]
[332788111,1721523042247,-500.0,0.00013698,2]
[332788112,1721523042258,-500.0,0.00013698,2]
[332788113,1721523042269,-500.0,0.00013698,2]
[332788114,1721523042280,-500.0,0.00013698,2]
[332788115,1721523042290,-500.0,0.00013698,2]
[332788116,1721523042300,-500.0,0.00013698,2]
[332788117,1721523042310,-500.0,0.00013698,2]
[332788118,1721523042319,-500.0,0.00013698,2]
[332788119,1721523042328,-500.0,0.00013698,2]
[332788120,1721523042339,-500.0,0.00013698,2]
[332788121,1721523042349,-519.98,0.00013698,2]
[332788122,1721523042359,-500.0,0.00013698,2]
[332788123,1721523042372,-500.0,0.00013698,2]
[332788124,1721523042382,-500.0,0.00013698,2]
[332788125,1721523042393,-500.0,0.00013698,2]
[332788126,1721523042402,-500.0,0.00013698,2]
[332788127,1721523042412,-519.20187888,0.00013698,2]
[332788128,1721523042422,-500.0,0.00013698,2]
[332788129,1721523042432,-500.0,0.00013698,2]
[332788130,1721523042442,-1869.55,0.00013698,2]
[332788131,1721523042453,-532.23,0.00013698,2]
[332788132,1721523042464,-501.40132505,0.00013698,2]
[332788133,1721523042474,-1621.62,0.00013698,2]
[332788134,1721523042483,-500.0,0.00013698,2]
[332788135,1721523042494,-506.666072,0.00013698,2]
[332788136,1721523042504,-1542.18,0.00013698,2]
[332788137,1721523042514,-1798.73,0.00013698,2]
[332788138,1721523042525,-500.0,0.00013698,2]
[332788140,1721523042535,-465.25885834,0.00013698,2]
[332788142,1721523042545,-664.18,0.00013698,2]
[332788144,1721523042555,-500.0,0.00013698,2]
[332788146,1721523042566,-1594.29,0.00013698,2]
[332788148,1721523042575,-500.0,0.00013698,2]
[332788149,1721523042586,-500.0,0.00013698,2]
[332788150,1721523042598,-500.0,0.00013698,2]
[332788151,1721523042609,-500.0,0.00013698,2]
[332788152,1721523042619,-500.0,0.00013698,2]
[332788153,1721523042629,-27254.32,0.00013698,2]
[332788154,1721523042640,-513.29292792,0.00013698,2]
[332788155,1721523042650,-500.0,0.00013698,2]
[332788156,1721523042661,-500.0,0.00013698,2]
[332788157,1721523042673,-501.14861689,0.00013698,2]
[332788158,1721523042683,-1195.14,0.00013698,2]
[332788159,1721523042693,-500.0,0.00013698,2]
[332788161,1721523042703,-500.0,0.00013698,2]
[332788163,1721523042713,-3149.53,0.00013698,2]
[332788164,1721523042724,-518.04290527,0.00013698,2]
[332788165,1721523042735,-1691.21,0.00013698,2]
[332788166,1721523042746,-500.0,0.00013698,2]
[332788168,1721523042757,-517.43758687,0.00013698,2]
[332788169,1721523042769,-1549.23,0.00013698,2]
[332788170,1721523042778,-500.0,0.00013698,2]
[332788171,1721523042789,-509.288735,0.00013698,2]
[332788172,1721523042801,-867.82,0.00013698,2]
[332788173,1721523042812,-500.0,0.00013698,2]
[332788174,1721523042821,-500.0,0.00013698,2]
[332788175,1721523042831,-514.86963877,0.00013698,2]
[332788176,1721523042843,-500.0,0.00013698,2]
[332788177,1721523042854,-500.0,0.00013698,2]
[332788178,1721523042865,-500.0,0.00013698,2]
[332788180,1721523042875,-798.67,0.00013698,2]
[332788182,1721523042885,-500.0,0.00013698,2]
[332788183,1721523042895,-500.0,0.00013698,2]
[332788184,1721523042904,-500.0,0.00013698,2]
[332788185,1721523042915,-500.0,0.00013698,2]
[332788186,1721523042925,-500.0,0.00013698,2]
[332788187,1721523042934,-484.76332639,0.00013698,2]
[332788188,1721523042945,-500.0,0.00013698,2]
[332788189,1721523042955,-500.0,0.00013698,2]
[332788190,1721523042965,-500.0,0.00013698,2]
[332788191,1721523042975,-500.0,0.00013698,2]
[332788192,1721523042985,-500.0,0.00013698,2]
[332788193,1721523042995,-500.0,0.00013698,2]
[332788195,1721523043006,-500.0,0.00013698,2]
[332788196,1721523043016,-1124.1,0.00013698,2]
[332788197,1721523043026,-190.88335774,0.00013698,2]
[332788198,1721523043036,-548.2092026,0.00013698,2]
[332788199,1721523043046,-500.0,0.00013698,2]
[332788200,1721523043056,-500.0,0.00013698,2]
[332788201,1721523043065,-548.75997375,0.00013698,2]
[332788202,1721523043075,-500.0,0.00013698,2]
[332788203,1721523043086,-500.0,0.00013698,2]
[332788204,1721523043096,-500.0,0.00013698,2]
[332788205,1721523043106,-500.0,0.00013698,2]
[332788206,1721523043119,-500.0,0.00013698,2]
[332788213,1721523043315,-500.0,0.00013698,2]
[332788214,1721523043327,-500.0,0.00013698,2]
[332788215,1721523043339,-2071.5,0.00013698,2]
[332788216,1721523043349,-500.0,0.00013698,2]
[332788217,1721523043360,-500.0,0.00013698,2]
[332788218,1721523043372,-500.0,0.00013698,2]
[332788219,1721523043382,-500.0,0.00013698,2]
[332788220,1721523043393,-500.0,0.00013698,2]
[332788221,1721523043403,-500.0,0.00013698,2]
[332788222,1721523043412,-516.86201681,0.00013698,2]
[332788223,1721523043422,-524.86017018,0.00013698,2]
[332788224,1721523043432,-502.11824121,0.00013698,2]
[332788225,1721523043443,-1304.02,0.00013698,2]
[332788226,1721523043452,-500.0,0.00013698,2]
[332788227,1721523043462,-500.0,0.00013698,2]
[332788228,1721523043472,-500.0,0.00013698,2]
[332788229,1721523043482,-500.0,0.00013698,2]
[332788230,1721523043492,-821.45,0.00013698,2]
[332788231,1721523043501,-500.0,0.00013698,2]
[332788232,1721523043510,-500.0,0.00013698,2]
[332788233,1721523043519,-500.0,0.00013698,2]
[332788234,1721523043529,-282.83156827,0.00013698,2]
[332788235,1721523043539,-500.0,0.00013698,2]
[332788236,1721523043548,-5381.55,0.00013698,2]
[332788237,1721523043558,-511.04904643,0.00013698,2]
[332788238,1721523043567,-500.0,0.00013698,2]
[332788239,1721523043577,-813.74,0.00013698,2]
[332788240,1721523043586,-500.0,0.00013698,2]
[332788241,1721523043595,-721.67,0.00013698,2]
[332788242,1721523043609,-500.0,0.00013698,2]
[332788243,1721523043619,-692.33,0.00013698,2]
[332788244,1721523043629,-571.89745073,0.00013698,2]
[332788245,1721523043640,-1766.35,0.00013698,2]
[332788246,1721523043650,-1049.58,0.00013698,2]
[332788247,1721523043660,-505.76262032,0.00013698,2]
[332788248,1721523043669,-839.57,0.00013698,2]
[332788249,1721523043679,-1019.12,0.00013698,2]
[332788250,1721523043688,-918.96,0.00013698,2]
[332788251,1721523043699,-509.27639716,0.00013698,2]
[332788252,1721523043711,-500.0,0.00013698,2]
[332788253,1721523043722,-928.86,0.00013698,2]
[332788254,1721523043733,-500.0,0.00013698,2]
[332788255,1721523043743,-500.0,0.00013698,2]
[332788256,1721523043755,-500.0,0.00013698,2]
[332788257,1721523043767,-456.093618,0.00013698,2]
[332788258,1721523043778,-606.28,0.00013698,2]
[332788259,1721523043788,-651.45,0.00013698,2]
[332788260,1721523043799,-626.45,0.00013698,2]
[332788261,1721523043810,-2173.33,0.00013698,2]
[332788262,1721523043820,-500.0,0.00013698,2]
[332788263,1721523043831,-500.0,0.00013698,2]
[332788264,1721523043841,-500.0,0.00013698,2]
[332788265,1721523043851,-500.0,0.00013698,2]
[332788266,1721523043860,-500.0,0.00013698,2]
[332788267,1721523043870,-500.0,0.00013698,2]
[332788268,1721523043879,-500.0,0.00013698,2]
[332788269,1721523043889,-500.0,0.00013698,2]
[332788270,1721523043899,-500.0,0.00013698,2]
[332788271,1721523043908,-500.0,0.00013698,2]
[332788272,1721523043917,-500.0,0.00013698,2]
[332788273,1721523043926,-500.0,0.00013698,2]
[332788274,1721523043935,-526.5,0.00013698,2]
[332788275,1721523043945,-500.0,0.00013698,2]
[332788276,1721523043954,-500.0,0.00013698,2]
[332788277,1721523043964,-2016.9,0.00013698,2]
[332788278,1721523043973,-2935.33,0.00013698,2]
[332788279,1721523043982,-500.0,0.00013698,2]
[332788280,1721523043991,-600.41,0.00013698,2]
[332788281,1721523044001,-500.0,0.00013698,2]
[332788282,1721523044010,-565.54,0.00013698,2]
[332788283,1721523044019,-500.0,0.00013698,2]
[332788284,1721523044030,-7370.76,0.00013698,2]
[332788285,1721523044039,-500.0,0.00013698,2]
[332788286,1721523044049,-500.0,0.00013698,2]
[332788287,1721523044059,-500.3265989,0.00013698,2]
[332788288,1721523044068,-509.05096793,0.00013698,2]
[332788289,1721523044078,-545.29737027,0.00013698,2]
[332788290,1721523044087,-500.0,0.00013698,2]
[332788291,1721523044097,-500.0,0.00013698,2]
[332788292,1721523044106,-500.0,0.00013698,2]
[332788293,1721523044115,-685.17,0.00013698,2]
[332788294,1721523044125,-500.0,0.00013698,2]
[332788295,1721523044135,-500.0,0.00013698,2]
[332788296,1721523044144,-500.0,0.00013698,2]
[332788297,1721523044153,-500.0,0.00013698,2]
[332788298,1721523044163,-523.97,0.00013698,2]
[332788299,1721523044172,-500.0,0.00013698,2]
[332788300,1721523044181,-2174.13,0.00013698,2]
[332788301,1721523044191,-624.4,0.00013698,2]
[332788302,1721523044201,-866.77,0.00013698,2]
[332788303,1721523044210,-744.4,0.00013698,2]
[332788304,1721523044220,-500.0,0.00013698,2]
[332788305,1721523044229,-623.85,0.00013698,2]
[332788306,1721523044238,-500.0,0.00013698,2]
[332788307,1721523044247,-500.0,0.00013698,2]
[332788308,1721523044257,-500.0,0.00013698,2]
[332788309,1721523044266,-3769.53,0.00013698,2]
[332788310,1721523044275,-500.0,0.00013698,2]
[332788311,1721523044285,-500.0,0.00013698,2]
[332788312,1721523044294,-7946.43,0.00013698,2]
[332788313,1721523044304,-500.0,0.00013698,2]
[332788314,1721523044313,-500.0,0.00013698,2]
[332788315,1721523044323,-502.26881878,0.00013698,2]
[332788316,1721523044332,-1037.53,0.00013698,2]
[332788317,1721523044343,-507.81365659,0.00013698,2]
[332788318,1721523044352,-500.0,0.00013698,2]
[332788319,1721523044361,-500.08985855,0.00013698,2]
[332788320,1721523044371,-500.0,0.00013698,2]
[332788321,1721523044380,-1611.19,0.00013698,2]
[332788322,1721523044390,-500.0,0.00013698,2]
[332788323,1721523044399,-2472.19,0.00013698,2]
[332788324,1721523044408,-501.29419541,0.00013698,2]
[332788325,1721523044418,-2016.0,0.00013698,2]
[332788326,1721523044427,-500.0,0.00013698,2]
[332788327,1721523044437,-500.0,0.00013698,2]
[332788328,1721523044446,-500.0,0.00013698,2]
[332788329,1721523044455,-500.0,0.00013698,2]
[332788330,1721523044465,-500.0,0.00013698,2]
[332788331,1721523044475,-500.0,0.00013698,2]
[332788332,1721523044486,-551.12,0.00013698,2]
[332788333,1721523044495,-500.0,0.00013698,2]
[332788334,1721523044505,-2589.19,0.00013698,2]
[332788335,1721523044514,-500.0,0.00013698,2]
[332788336,1721523044524,-500.0,0.00013698,2]
[332788337,1721523044534,-500.0,0.00013698,2]
[332788338,1721523044543,-627.68,0.00013698,2]
[332788339,1721523044553,-500.0,0.00013698,2]
[332788340,1721523044562,-500.0,0.00013698,2]
[332788341,1721523044571,-1077.34,0.00013698,2]
[332788342,1721523044580,-505.7857432,0.00013698,2]
[332788343,1721523044590,-500.0,0.00013698,2]
[332788344,1721523044602,-170.72705745,0.00013698,2]
[332788345,1721523044612,-5010.21,0.00013698,2]
[332788346,1721523044621,-949.43,0.00013698,2]
[332788347,1721523044630,-500.0,0.00013698,2]
[332788348,1721523044640,-500.0,0.00013698,2]
[332788349,1721523044651,-518.49437446,0.00013698,2]
[332788350,1721523044662,-500.0,0.00013698,2]
[332788351,1721523044674,-500.0,0.00013698,2]
[332788352,1721523044685,-594.76,0.00013698,2]
[332788353,1721523044695,-500.0,0.00013698,2]